[Event "Nordic Chess-ch 2019"]
[Site "Sarpsborg"]
[Date "2019.06.27"]
[Round "9.27"]
[White "Jashari, Driton"]
[Black "Nordtug, Per Oistein"]
[Result "1-0"]
[ECO "B53"]
[WhiteElo "1755"]
[BlackElo "1456"]
[Annotator "NA RC"]
[PlyCount "67"]
[EventDate "2019.06.21"]
[EventType "swiss"]
[EventCountry "NOR"]
[SourceTitle "playchess.com"]
[Source "ChessBase"]
[SourceQuality "1"]
[TimeControl "40/5400+30:1800+30"]

1. e4 {[%emt 0:00:00]} c5 {[%emt 0:00:00]} 2. Nf3 {[%emt 0:00:55]} d6 {[%emt 0:00:00]} 3. d4 {[%emt 0:01:23]} cxd4 {[%emt 0:00:00]} 4. Qxd4 {[%emt 0:00:10]} Nc6 {[%emt 0:00:59]} 5. Qd1 {[%emt 0:00:06]} g6 {[%emt 0:01:35]} 6. c3 {[%emt 0:00:04]} Bg7 {[%emt 0:00:11]} 7. Bc4 {[%emt 0:00:51]} Qb6 {[%emt 0:01:40]} 8. O-O {[%emt 0:00:11]} Qc5 {[%emt 0:03:45]} 9. Bb3 {[%emt 0:00:11]} Nf6 {[%emt 0:00:06]} 10. Ng5 {[%emt 0:05:12]} O-O {[%emt 0:02:31]} 11. Be3 {[%emt 0:00:07]} Qa5 {[%emt 0:02:10]} 12. Nd2 {[%emt 0:00:06]} Ne5 {[%emt 0:10:05]} 13. h3 {[%emt 0:04:38]} h6 {[%emt 0:03:20]} 14. f4 {[%emt 0:00:38]} Nd3 {[%emt 0:02:31]} 15. Nc4 {[%emt 0:01:14]} Nxb2 {[%emt 0:04:23]} 16. Nxb2 {[%emt 0:04:49]} hxg5 {[%emt 0:02:32]} 17. fxg5 {[%emt 0:01:19]} Nxe4 {[%emt 0:00:40]} 18. Qf3 {[%emt 0:02:32]} Bf5 {[%emt 0:02:02]} 19. g4 {[%emt 0:00:08]} Bxc3 {[%emt 0:11:57]} 20. Nc4 {[%emt 0:00:47]} Qb5 {[%emt 0:06:11]} 21. gxf5 {[%emt 0:00:07]} gxf5 {[%emt 0:04:02]} 22. Rad1 {[%emt 0:02:09]} Rac8 {[%emt 0:04:34]} 23. Na3 {[%emt 0:06:19]} Qd7 {[%emt 0:03:36]} 24. Qxf5 {[%emt 0:00:58]} Qxf5 {[%emt 0:01:22]} 25. Rxf5 {[%emt 0:00:04]} Kg7 {[%emt 0:01:00]} 26. Kg2 {[%emt 0:00:19]} e6 {[%emt 0:01:23]} 27. Rf3 {[%emt 0:00:39]} a6 {[%emt 0:01:30]} 28. Nb1 {[%emt 0:00:07]} d5 {[%emt 0:02:14]} 29. Nxc3 {[%emt 0:00:10]} Rxc3 {[%emt 0:00:07]} 30. Bd4+ {[%emt 0:00:22]} Kg6 {[%emt 0:05:11]} 31. Bxc3 {[%emt 0:02:30]} Nxg5 {[%emt 0:01:05]} 32. Rg3 {[%emt 0:00:08]} f6 {[%emt 0:00:38]} 33. h4 {[%emt 0:00:13]} f5 {[%emt 0:01:32]} 34. Rxg5+ {[%emt 0:00:10]} 1-0

[Event "Nordic Chess-ch 2019"]
[Site "Sarpsborg"]
[Date "2019.06.27"]
[Round "9.28"]
[White "Henriksen, Morgan"]
[Black "Haggar, Haytham"]
[Result "0-1"]
[ECO "E91"]
[WhiteElo "1717"]
[BlackElo "1309"]
[Annotator "NA"]
[PlyCount "96"]
[EventDate "2019.06.21"]
[EventType "swiss"]
[EventCountry "NOR"]
[SourceTitle "playchess.com"]
[Source "ChessBase"]
[SourceQuality "1"]
[TimeControl "40/5400+30:1800+30"]

1. d4 {[%emt 0:00:23]} g6 {[%emt 0:00:00]} 2. c4 {[%emt 0:00:09]} Bg7 {[%emt 0:00:05]} 3. Nc3 {[%emt 0:00:07]} Nf6 {[%emt 0:00:31]} 4. e4 {[%emt 0:00:15]} d6 {[%emt 0:00:46]} 5. Nf3 {[%emt 0:00:08]} Bg4 {[%emt 0:01:07]} 6. Be2 {[%emt 0:01:05]} O-O {[%emt 0:00:56]} 7. O-O {[%emt 0:00:07]} Nc6 {[%emt 0:03:23]} 8. Be3 {[%emt 0:00:26]} b6 {[%emt 0:02:41]} 9. a3 {[%emt 0:01:36]} Na5 {[%emt 0:00:43]} 10. b4 {[%emt 0:00:44]} Nc6 {[%emt 0:04:04]} 11. Rc1 {[%emt 0:00:29]} a5 {[%emt 0:01:17]} 12. b5 {[%emt 0:01:57]} Nb8 {[%emt 0:00:42]} 13. h3 {[%emt 0:02:50]} Be6 {[%emt 0:01:48]} 14. Qc2 {[%emt 0:01:10]} Ne8 {[%emt 0:05:50]} 15. Rfd1 {[%emt 0:01:09]} Qc8 {[%emt 0:00:26]} 16. Ng5 {[%emt 0:04:21]} Bd7 {[%emt 0:00:45]} 17. Nd5 {[%emt 0:03:02]} Qd8 {[%emt 0:02:36]} 18. c5 {[%emt 0:00:54]} e6 {[%emt 0:04:41]} 19. cxd6 {[%emt 0:10:10]} cxd6 {[%emt 0:04:32]} 20. Nc3 {[%emt 0:03:57]} Ra7 {[%emt 0:04:06]} 21. Na4 {[%emt 0:06:43]} h6 {[%emt 0:04:11]} 22. Nf3 {[%emt 0:00:26]} Rb7 {[%emt 0:01:50]} 23. d5 {[%emt 0:04:01]} e5 {[%emt 0:03:56]} 24. Nd2 {[%emt 0:01:13]} f5 {[%emt 0:02:30]} 25. f3 {[%emt 0:01:04]} f4 {[%emt 0:01:28]} 26. Bf2 {[%emt 0:00:00]} Bf6 {[%emt 0:04:39]} 27. Nc4 {[%emt 0:04:03]} Bxb5 {[%emt 0:08:29]} 28. Ncxb6 {[%emt 0:06:46]} Bxe2 {[%emt 0:06:25]} 29. Qxe2 {[%emt 0:00:00]} Rc7 {[%emt 0:09:02]} 30. Qe1 {[%emt 0:01:37]} Rff7 {[%emt 0:02:27]} 31. Na8 {[%emt 0:06:49]} Rxc1 {[%emt 0:01:59]} 32. Rxc1 {[%emt 0:00:10]} Nd7 {[%emt 0:00:37]} 33. N8b6 {[%emt 0:00:27]} Nxb6 {[%emt 0:01:05]} 34. Bxb6 {[%emt 0:02:40]} Qb8 {[%emt 0:03:25]} 35. Qxa5 {[%emt 0:03:17]} Bh4 {[%emt 0:00:24]} 36. Qa6 {[%emt 0:03:27]} Rb7 {[%emt 0:00:45]} 37. Qb5 {[%emt 0:04:16]} Kf7 {[%emt 0:03:04]} 38. Qc6 {[%emt 0:01:45]} Qa8 {[%emt 0:02:11]} 39. Nc3 {[%emt 0:10:52]} Qa6 {[%emt 0:04:16]} 40. Ba5 {[%emt 0:05:57]} Qa7+ {[%emt 0:02:26]} 41. Kh1 {[%emt 0:31:03]} Rb2 {[%emt 0:30:46]} 42. Nd1 {[%emt 0:03:44]} Re2 {[%emt 0:00:00]} 43. Nc3 {[%emt 0:00:00]} Rxg2 {[%emt 0:00:00]} 44. Bb6 {[%emt 0:00:00]} Qxa3 {[%emt 0:00:00]} 45. Nb5 {[%emt 0:00:00]} Qxf3 {[%emt 0:00:00]} 46. Nxd6+ {[%emt 0:00:00]} Nxd6 {[%emt 0:00:00]} 47. Qd7+ {[%emt 0:00:00]} Be7 {[%emt 0:00:00]} 48. Qe6+ {[%emt 0:00:00]} Kf8 {[%emt 0:00:00]} 0-1

[Event "Nordic Chess-ch 2019"]
[Site "Sarpsborg"]
[Date "2019.06.27"]
[Round "9.29"]
[White "Pettersen, Morgan Buckholm"]
[Black "Eiding, Amanda Mai Irgens"]
[Result "0-1"]
[ECO "C50"]
[WhiteElo "1508"]
[BlackElo "1655"]
[Annotator "NA"]
[PlyCount "166"]
[EventDate "2019.06.21"]
[EventType "swiss"]
[EventCountry "NOR"]
[SourceTitle "playchess.com"]
[Source "ChessBase"]
[SourceQuality "1"]
[TimeControl "40/5400+30:1800+30"]

1. e4 {[%emt 0:00:00]} e5 {[%emt 0:03:05]} 2. Nf3 {[%emt 0:00:09]} Nc6 {[%emt 0:00:18]} 3. Bc4 {[%emt 0:01:52]} Bc5 {[%emt 0:03:06]} 4. d3 {[%emt 0:01:28]} h6 {[%emt 0:01:17]} 5. O-O {[%emt 0:01:24]} d6 {[%emt 0:00:32]} 6. c3 {[%emt 0:01:35]} Bg4 {[%emt 0:03:02]} 7. Be3 {[%emt 0:01:50]} Bb6 {[%emt 0:03:36]} 8. Nbd2 {[%emt 0:02:55]} Nf6 {[%emt 0:00:43]} 9. h3 {[%emt 0:03:05]} Bh5 {[%emt 0:00:32]} 10. Bb3 {[%emt 0:02:07]} O-O {[%emt 0:00:52]} 11. Bxb6 {[%emt 0:01:22]} axb6 {[%emt 0:01:01]} 12. Qc2 {[%emt 0:04:03]} Nh7 {[%emt 0:03:32]} 13. g4 {[%emt 0:14:40]} Bg6 {[%emt 0:02:44]} 14. h4 {[%emt 0:04:26]} Nf6 {[%emt 0:01:09]} 15. h5 {[%emt 0:00:46]} Bh7 {[%emt 0:00:15]} 16. Nh2 {[%emt 0:00:38]} d5 {[%emt 0:05:55]} 17. f3 {[%emt 0:04:42]} Kh8 {[%emt 0:08:00]} 18. Rae1 {[%emt 0:01:00]} d4 {[%emt 0:00:50]} 19. Re2 {[%emt 0:00:35]} Bg8 {[%emt 0:00:57]} 20. f4 {[%emt 0:00:35]} Qd7 {[%emt 0:03:14]} 21. Rg2 {[%emt 0:01:59]} Nh7 {[%emt 0:04:42]} 22. f5 {[%emt 0:06:13]} f6 {[%emt 0:00:45]} 23. Nhf3 {[%emt 0:00:56]} dxc3 {[%emt 0:01:48]} 24. bxc3 {[%emt 0:01:00]} Bxb3 {[%emt 0:01:15]} 25. Nxb3 {[%emt 0:00:05]} Ra7 {[%emt 0:02:20]} 26. Nh4 {[%emt 0:00:05]} Rfa8 {[%emt 0:00:36]} 27. Ng6+ {[%emt 0:00:03]} Kg8 {[%emt 0:00:24]} 28. Nc1 {[%emt 0:01:06]} Ng5 {[%emt 0:02:08]} 29. Qb3+ {[%emt 0:00:34]} Qf7 {[%emt 0:02:51]} 30. Kh2 {[%emt 0:01:14]} Qxb3 {[%emt 0:01:11]} 31. axb3 {[%emt 0:00:02]} Kf7 {[%emt 0:01:08]} 32. Rd2 {[%emt 0:05:10]} Ra1 {[%emt 0:00:57]} 33. Kg3 {[%emt 0:00:51]} Na5 {[%emt 0:04:17]} 34. Rfd1 {[%emt 0:00:39]} c5 {[%emt 0:01:15]} 35. Kf2 {[%emt 0:06:39]} Nh3+ {[%emt 0:00:30]} 36. Ke3 {[%emt 0:00:27]} Rxc1 {[%emt 0:01:53]} 37. Rxc1 {[%emt 0:01:02]} Nxb3 {[%emt 0:00:10]} 38. Rdc2 {[%emt 0:00:14]} Nxc1 {[%emt 0:00:24]} 39. Rxc1 {[%emt 0:00:02]} Rd8 {[%emt 0:03:03]} 40. Rb1 {[%emt 0:01:15]} Rd6 {[%emt 0:04:06]} 41. c4 {[%emt 0:34:48]} Ng5 {[%emt 0:30:23]} 42. Ra1 {[%emt 0:00:40]} Rd8 {[%emt 0:02:03]} 43. Ra7 {[%emt 0:01:06]} Rb8 {[%emt 0:00:11]} 44. Nh4 {[%emt 0:01:58]} Ke8 {[%emt 0:00:46]} 45. Ng2 {[%emt 0:01:15]} Nf7 {[%emt 0:00:38]} 46. Ne1 {[%emt 0:01:01]} Nd8 {[%emt 0:00:42]} 47. Nc2 {[%emt 0:00:54]} Nc6 {[%emt 0:00:34]} 48. Ra1 {[%emt 0:00:33]} Kd7 {[%emt 0:01:07]} 49. Rb1 {[%emt 0:00:59]} Kc7 {[%emt 0:02:03]} 50. Na3 {[%emt 0:00:51]} Nb4 {[%emt 0:00:42]} 51. Nb5+ {[%emt 0:00:13]} Kd7 {[%emt 0:01:03]} 52. Kd2 {[%emt 0:00:25]} Ra8 {[%emt 0:00:48]} 53. Rb2 {[%emt 0:00:25]} Ra2 {[%emt 0:03:53]} 54. Rxa2 {[%emt 0:00:35]} Nxa2 {[%emt 0:00:09]} 55. Nc3 {[%emt 0:00:10]} Nb4 {[%emt 0:02:02]} 56. Nd5 {[%emt 0:00:34]} Kc6 {[%emt 0:01:54]} 57. Ne7+ {[%emt 0:00:41]} Kd6 {[%emt 0:03:05]} 58. Nc8+ {[%emt 0:00:24]} Kc7 {[%emt 0:00:32]} 59. Na7 {[%emt 0:00:03]} Nc6 {[%emt 0:01:18]} 60. Nb5+ {[%emt 0:00:06]} Kd7 {[%emt 0:00:33]} 61. Kc3 {[%emt 0:02:16]} Nd8 {[%emt 0:01:36]} 62. Kd2 {[%emt 0:00:32]} Ne6 {[%emt 0:00:32]} 63. fxe6+ {[%emt 0:00:31]} Kxe6 {[%emt 0:00:25]} 64. Ke3 {[%emt 0:00:13]} Kd7 {[%emt 0:02:18]} 65. Nc3 {[%emt 0:00:07]} Kc6 {[%emt 0:01:40]} 66. Kd2 {[%emt 0:00:05]} Kd6 {[%emt 0:01:23]} 67. Kc2 {[%emt 0:00:34]} Ke6 {[%emt 0:02:05]} 68. Kb3 {[%emt 0:00:01]} Kf7 {[%emt 0:00:40]} 69. Ka4 {[%emt 0:01:19]} g6 {[%emt 0:00:10]} 70. Kb5 {[%emt 0:00:58]} f5 {[%emt 0:00:12]} 71. exf5 {[%emt 0:00:42]} gxf5 {[%emt 0:00:56]} 72. gxf5 {[%emt 0:00:53]} Kf6 {[%emt 0:00:14]} 73. Kxb6 {[%emt 0:00:43]} Kxf5 {[%emt 0:00:33]} 74. Kxc5 {[%emt 0:00:42]} Kg5 {[%emt 0:00:14]} 75. Kb6 {[%emt 0:00:42]} Kxh5 {[%emt 0:00:11]} 76. Ne2 {[%emt 0:00:27]} Kg4 {[%emt 0:00:15]} 77. Kxb7 {[%emt 0:00:28]} Kf3 {[%emt 0:01:30]} 78. c5 {[%emt 0:00:50]} Kxe2 {[%emt 0:09:17]} 79. c6 Kxd3 {[%emt 0:00:00]} 80. c7 {[%emt 0:00:02]} e4 {[%emt 0:00:00]} 81. c8=Q {[%emt 0:00:05]} e3 {[%emt 0:00:00]} 82. Qh3 {[%emt 0:01:18]} h5 {[%emt 0:00:00]} 83. Qf1+ {[%emt 0:01:24]} Kd2 {[%emt 0:00:00]} 0-1

[Event "Nordic Chess-ch 2019"]
[Site "Sarpsborg"]
[Date "2019.06.27"]
[Round "9.30"]
[White "Dingertz, Filip"]
[Black "Kristiansen, Terje"]
[Result "1/2-1/2"]
[ECO "B12"]
[WhiteElo "1111"]
[BlackElo "1330"]
[Annotator "NA RC"]
[PlyCount "124"]
[EventDate "2019.06.21"]
[EventType "swiss"]
[EventCountry "NOR"]
[SourceTitle "playchess.com"]
[Source "ChessBase"]
[SourceQuality "1"]
[TimeControl "40/5400+30:1800+30"]

1. e4 {[%emt 0:00:00]} c6 {[%emt 0:00:00]} 2. d4 {[%emt 0:00:00]} d5 {[%emt 0:00:00]} 3. e5 {[%emt 0:00:16]} Bf5 {[%emt 0:00:00]} 4. Bd3 {[%emt 0:00:33]} Bg6 {[%emt 0:02:03]} 5. Nf3 {[%emt 0:01:38]} e6 {[%emt 0:00:31]} 6. c3 {[%emt 0:02:14]} Ne7 {[%emt 0:03:04]} 7. Nh4 {[%emt 0:02:10]} Bxd3 {[%emt 0:00:28]} 8. Qxd3 {[%emt 0:01:20]} Ng6 {[%emt 0:02:12]} 9. Nxg6 {[%emt 0:01:18]} hxg6 {[%emt 0:01:30]} 10. Nd2 {[%emt 0:08:52]} Nd7 {[%emt 0:01:49]} 11. Nf3 {[%emt 0:00:17]} Be7 {[%emt 0:01:01]} 12. Be3 {[%emt 0:04:30]} Qb6 {[%emt 0:01:36]} 13. Qc2 {[%emt 0:02:16]} O-O-O {[%emt 0:05:05]} 14. Qb3 {[%emt 0:05:02]} Rh5 {[%emt 0:04:02]} 15. c4 {[%emt 0:02:14]} Bb4+ {[%emt 0:02:38]} 16. Bd2 {[%emt 0:00:34]} Bxd2+ {[%emt 0:02:12]} 17. Nxd2 {[%emt 0:01:33]} Rdh8 {[%emt 0:01:11]} 18. h3 {[%emt 0:02:23]} Qxd4 {[%emt 0:01:55]} 19. Nf3 {[%emt 0:05:15]} Qe4+ {[%emt 0:01:51]} 20. Qe3 {[%emt 0:00:48]} Qxe3+ {[%emt 0:02:11]} 21. fxe3 {[%emt 0:00:19]} Nxe5 {[%emt 0:00:07]} 22. Nxe5 {[%emt 0:00:31]} Rxe5 {[%emt 0:00:03]} 23. O-O {[%emt 0:00:16]} f6 {[%emt 0:02:03]} 24. cxd5 {[%emt 0:00:24]} exd5 {[%emt 0:00:58]} 25. Rae1 {[%emt 0:00:29]} Rhe8 {[%emt 0:00:27]} 26. Rf3 {[%emt 0:00:32]} d4 {[%emt 0:00:37]} 27. Kf2 {[%emt 0:00:12]} d3 {[%emt 0:00:50]} 28. Rd1 {[%emt 0:00:19]} Rd8 {[%emt 0:00:27]} 29. e4 {[%emt 0:00:32]} Rxe4 {[%emt 0:00:46]} 30. Rfxd3 {[%emt 0:00:09]} Rxd3 {[%emt 0:00:26]} 31. Rxd3 {[%emt 0:00:07]} Kc7 {[%emt 0:00:33]} 32. Kf3 {[%emt 0:00:33]} f5 {[%emt 0:01:31]} 33. g4 {[%emt 0:00:48]} Rb4 {[%emt 0:01:16]} 34. b3 {[%emt 0:00:43]} f4 {[%emt 0:00:42]} 35. Rd2 {[%emt 0:00:30]} g5 {[%emt 0:01:06]} 36. Re2 {[%emt 0:00:37]} Rd4 {[%emt 0:00:37]} 37. Re7+ {[%emt 0:00:31]} Rd7 {[%emt 0:00:04]} 38. Re5 {[%emt 0:00:14]} Rd5 {[%emt 0:00:53]} 39. Re7+ {[%emt 0:02:37]} Kb6 {[%emt 0:00:54]} 40. Rxg7 {[%emt 0:00:15]} a5 {[%emt 0:01:22]} 41. Rh7 {[%emt 0:30:41]} Rd3+ {[%emt 0:31:13]} 42. Ke2 {[%emt 0:01:59]} Rc3 {[%emt 0:02:47]} 43. h4 {[%emt 0:00:35]} Rc2+ {[%emt 0:01:17]} 44. Kf3 {[%emt 0:00:18]} gxh4 {[%emt 0:01:00]} 45. Rxh4 {[%emt 0:00:31]} Rxa2 {[%emt 0:00:25]} 46. g5 {[%emt 0:00:21]} Ra1 {[%emt 0:00:32]} 47. Kxf4 {[%emt 0:00:25]} Rg1 {[%emt 0:00:33]} 48. Rg4 {[%emt 0:00:16]} Rf1+ {[%emt 0:00:23]} 49. Kg3 {[%emt 0:00:38]} Rf8 {[%emt 0:02:11]} 50. g6 {[%emt 0:00:12]} Rg8 {[%emt 0:00:30]} 51. Kf4 {[%emt 0:00:50]} Kc5 {[%emt 0:01:21]} 52. Kf5 {[%emt 0:00:25]} Kd6 {[%emt 0:01:17]} 53. Kf6 {[%emt 0:00:21]} Rf8+ {[%emt 0:02:12]} 54. Kg7 {[%emt 0:00:45]} Re8 {[%emt 0:01:16]} 55. Rd4+ {[%emt 0:01:39]} Kc5 {[%emt 0:02:12]} 56. Kf7 {[%emt 0:00:41]} Re1 {[%emt 0:00:19]} 57. Rg4 {[%emt 0:03:26]} Rd1 {[%emt 0:00:16]} 58. Ke7 {[%emt 0:00:47]} Re1+ {[%emt 0:00:26]} 59. Kd7 {[%emt 0:00:53]} Rd1+ {[%emt 0:00:29]} 60. Ke7 {[%emt 0:01:31]} Re1+ {[%emt 0:00:15]} 61. Kf7 {[%emt 0:00:59]} Rf1+ {[%emt 0:00:28]} 62. Ke7 {[%emt 0:01:19]} Re1+ {[%emt 0:00:13]} 1/2-1/2

[Event "Nordic Chess-ch 2019"]
[Site "Sarpsborg"]
[Date "2019.06.27"]
[Round "9.31"]
[White "Ulrichsen, Jarl H"]
[Black "Rukovci, Shemsi"]
[Result "1-0"]
[ECO "D03"]
[WhiteElo "2180"]
[BlackElo "1907"]
[Annotator "NA"]
[PlyCount "177"]
[EventDate "2019.06.21"]
[EventType "swiss"]
[EventCountry "NOR"]
[SourceTitle "playchess.com"]
[Source "ChessBase"]
[SourceQuality "1"]
[TimeControl "40/5400+30:1800+30"]

1. d4 {[%emt 0:01:09]} Nf6 {[%emt 0:00:19]} 2. Nf3 {[%emt 0:01:10]} e6 {[%emt 0:01:06]} 3. Bg5 {[%emt 0:00:16]} h6 {[%emt 0:00:10]} 4. Bh4 {[%emt 0:01:48]} d5 {[%emt 0:01:59]} 5. e3 {[%emt 0:03:01]} Be7 {[%emt 0:00:26]} 6. Nbd2 {[%emt 0:01:26]} Nbd7 {[%emt 0:00:39]} 7. Bd3 {[%emt 0:02:01]} c5 {[%emt 0:00:20]} 8. c3 {[%emt 0:00:31]} Nf8 $146 {[%emt 0:02:09] D03: 1 d4 d5 2 Nf3 Nf6 3 Bg5, including Torre Attack with early ...d5} ({Predecessor:} 8... a6 9. a4 b6 10. O-O O-O 11. Ne5 Nxe5 12. dxe5 Nd7 13. Bg3 f6 14. exf6 Nxf6 15. e4 Qe8 16. Re1 {1-0 (34) Duda,J (2717)-Jumabayev,R (2612) Riadh 2017}) 9. Ne5 {[%emt 0:05:20]} N6d7 {[%emt 0:03:05]} 10. Bxe7 {[%emt 0:13:16]} Qxe7 {[%emt 0:00:51]} 11. f4 {[%emt 0:02:13]} h5 {[%emt 0:05:31]} 12. Ndf3 {[%emt 0:07:33]} Nxe5 {[%emt 0:02:20]} 13. Nxe5 {[%emt 0:00:27]} Rh6 {[%emt 0:01:05]} 14. Bb5+ {[%emt 0:07:54]} Bd7 {[%emt 0:05:05]} 15. Qa4 {[%emt 0:04:30]} Bxb5 {[%emt 0:05:21]} 16. Qxb5+ {[%emt 0:01:20]} Kd8 {[%emt 0:01:02]} 17. Qxc5 {[%emt 0:03:47]} Qxc5 {[%emt 0:01:37]} 18. dxc5 {[%emt 0:00:06]} Ke7 {[%emt 0:00:03]} 19. O-O {[%emt 0:02:50]} f6 {[%emt 0:01:52]} 20. Nd3 {[%emt 0:01:16]} Nd7 {[%emt 0:02:04]} 21. a4 {[%emt 0:02:08]} g6 {[%emt 0:00:24]} 22. Rfe1 {[%emt 0:01:45]} Rc8 {[%emt 0:00:49]} 23. e4 {[%emt 0:09:31]} Nxc5 {[%emt 0:07:54]} 24. Nxc5 {[%emt 0:00:27]} Rxc5 {[%emt 0:00:02]} 25. b4 {[%emt 0:00:55]} Rxc3 {[%emt 0:03:59]} 26. exd5 {[%emt 0:00:11]} e5 {[%emt 0:03:21]} 27. fxe5 {[%emt 0:00:15]} fxe5 {[%emt 0:00:08]} 28. Rxe5+ {[%emt 0:00:07]} Kd7 {[%emt 0:00:54]} 29. Rg5 {[%emt 0:08:08]} Rd3 {[%emt 0:04:21]} 30. h3 {[%emt 0:07:45]} Kd6 {[%emt 0:01:09]} 31. Rf1 {[%emt 0:00:42]} Ke7 {[%emt 0:00:57]} 32. Re5+ {[%emt 0:02:53]} Kd6 {[%emt 0:03:54]} 33. Re6+ {[%emt 0:00:51]} Kxd5 {[%emt 0:01:38]} 34. Re7 {[%emt 0:00:29]} Ra3 {[%emt 0:03:31]} 35. a5 {[%emt 0:01:41]} b5 {[%emt 0:04:57]} 36. Rxa7 {[%emt 0:08:18]} Ra4 {[%emt 0:01:44]} 37. Rd7+ {[%emt 0:00:00]} Ke6 {[%emt 0:01:36]} 38. Rd4 {[%emt 0:00:00]} Rh8 {[%emt 0:03:13]} 39. Re1+ {[%emt 0:01:30]} Kf6 {[%emt 0:00:41]} 40. Rd6+ {[%emt 0:00:00]} Kf7 {[%emt 0:01:42]} 41. Rd7+ {[%emt 0:29:41]} Kf6 {[%emt 0:32:31]} 42. Rd6+ {[%emt 0:00:00]} Kf7 {[%emt 0:00:00]} 43. Ree6 {[%emt 0:00:00]} Rxb4 {[%emt 0:00:00]} 44. Rf6+ {[%emt 0:00:00]} Ke7 {[%emt 0:00:00]} 45. Rde6+ {[%emt 0:00:00]} Kd7 {[%emt 0:00:00]} 46. Ra6 {[%emt 0:00:00]} Rc8 $2 {[%emt 0:00:00]} (46... Ke7 47. Rxg6 Kf7) 47. Rxg6 {[%emt 0:00:00]} Rf4 {[%emt 0:00:00]} (47... Rc7 $142 48. Rab6 Re4) 48. Ra7+ {[%emt 0:00:00]} Ke8 {[%emt 0:00:00]} 49. Rg8+ $2 {[%emt 0:00:00]} (49. Rb7 $18 {is more deadly.} Kf8 50. Rh6) 49... Rf8 {[%emt 0:00:00]} 50. Rxf8+ $2 {[%emt 0:00:00]} (50. Rgg7 $18 {and the rest is easy.} Rf4 51. a6) 50... Kxf8 {[%emt 0:00:00]} 51. Rb7 $18 {[%emt 0:00:00]} Rc1+ {[%emt 0:00:00]} 52. Kf2 {[%emt 0:00:00]} Ra1 {[%emt 0:00:00]} 53. Rxb5 {[%emt 0:00:00]} h4 {[%emt 0:00:00]} 54. Rb4 {[%emt 0:00:00]} Ra2+ {[%emt 0:00:00]} 55. Kg1 {[%emt 0:00:00]} Ra1+ {[%emt 0:00:00]} 56. Kh2 {[%emt 0:00:00]} Kg7 {[%emt 0:03:09]} 57. Rxh4 {[%emt 0:00:00]} Kg6 58. Re4 {[%emt 0:00:00]} Rxa5 {[%emt 0:01:52]} 59. h4 {[%emt 0:00:00]} Kf5 {[%emt 0:03:34]} 60. Rc4 {[%emt 0:00:00]} Rb5 {[%emt 0:02:32]} 61. Kh3 {[%emt 0:00:34]} Rb3+ {[%emt 0:02:58]} 62. g3 {[%emt 0:00:08]} Ra3 {[%emt 0:00:40]} 63. Rc5+ {[%emt 0:00:18]} Kg6 {[%emt 0:00:01]} 64. h5+ {[%emt 0:01:11]} Kh6 {[%emt 0:00:25]} 65. Kh4 {[%emt 0:00:15]} Ra1 {[%emt 0:00:04]} 66. Rc6+ {[%emt 0:00:57]} Kh7 {[%emt 0:00:01]} 67. g4 {[%emt 0:00:19]} Ra5 {[%emt 0:00:05]} 68. Rc7+ {[%emt 0:00:15]} Kh8 {[%emt 0:00:06]} 69. h6 {[%emt 0:00:49]} Ra4 {[%emt 0:00:51]} 70. Kh5 {[%emt 0:00:21]} Ra5+ {[%emt 0:00:39]} 71. g5 {[%emt 0:00:11]} Rb5 {[%emt 0:00:36]} 72. Re7 {[%emt 0:00:38]} Ra5 {[%emt 0:00:25]} 73. Kg6 {[%emt 0:00:47]} Ra6+ {[%emt 0:00:11]} 74. Kf5 {[%emt 0:00:11]} Ra5+ {[%emt 0:01:06]} 75. Kf6 {[%emt 0:00:43]} Ra8 {[%emt 0:02:12]} 76. g6 {[%emt 0:02:32]} Ra6+ {[%emt 0:01:27]} 77. Re6 {[%emt 0:00:32]} Ra8 {[%emt 0:00:11]} 78. Rd6 {[%emt 0:03:59]} Re8 {[%emt 0:00:43]} 79. Kf7 {[%emt 0:02:24]} Rf8+ {[%emt 0:01:03]} 80. Ke7 {[%emt 0:00:12]} Rg8 {[%emt 0:02:10]} 81. Rd8 {[%emt 0:00:14]} Rxd8 {[%emt 0:17:00]} 82. Kxd8 {[%emt 0:00:07]} Kg8 {[%emt 0:00:00]} 83. Ke7 {[%emt 0:00:12]} Kh8 {[%emt 0:00:00]} 84. Kf6 {[%emt 0:01:34]} Kg8 {[%emt 0:00:00]} 85. h7+ {[%emt 0:00:27]} Kh8 {[%emt 0:00:00]} 86. g7+ {[%emt 0:00:11]} Kxh7 {[%emt 0:00:00]} 87. Kf7 {[%emt 0:00:08]} Kh6 {[%emt 0:00:00]} 88. g8=Q {[%emt 0:00:10]} Kh5 {[%emt 0:00:00]} 89. Qg3 {[%emt 0:05:00]} 1-0

[Event "Nordic Chess-ch 2019"]
[Site "Sarpsborg"]
[Date "2019.06.27"]
[Round "9.34"]
[White "Kirppo, Ronny"]
[Black "Holst, Conny"]
[Result "0-1"]
[ECO "A46"]
[WhiteElo "1910"]
[BlackElo "2197"]
[Annotator "RC"]
[PlyCount "50"]
[EventDate "2019.06.21"]
[EventType "swiss"]
[EventCountry "NOR"]
[SourceTitle "playchess.com"]
[Source "ChessBase"]
[SourceQuality "1"]
[TimeControl "40/5400+30:1800+30"]

1. Nf3 {[%emt 0:00:00]} Nf6 {[%emt 0:00:00]} 2. d4 {[%emt 0:00:00]} e6 {[%emt 0:02:26]} 3. g3 {[%emt 0:00:47]} b5 {[%emt 0:02:26]} 4. Bg2 {[%emt 0:18:48]} Bb7 {[%emt 0:00:52]} 5. Bg5 {[%emt 0:00:37]} c5 {[%emt 0:11:07]} 6. c3 {[%emt 0:13:38]} cxd4 {[%emt 0:05:22]} 7. cxd4 {[%emt 0:00:08]} Be7 {[%emt 0:03:30]} 8. Nbd2 {[%emt 0:00:48]} O-O {[%emt 0:01:04]} 9. O-O {[%emt 0:00:05]} Qb6 {[%emt 0:05:35]} 10. e4 {[%emt 0:23:33]} Nc6 {[%emt 0:09:34]} 11. Be3 {[%emt 0:02:16]} d5 {[%emt 0:08:21]} 12. Ne5 {[%emt 0:03:58]} Rfd8 {[%emt 0:05:05]} 13. Nxc6 {[%emt 0:02:29]} Bxc6 {[%emt 0:00:43]} 14. e5 {[%emt 0:00:11]} Nd7 {[%emt 0:01:10]} 15. Qg4 {[%emt 0:00:40]} b4 {[%emt 0:04:24]} 16. Rfc1 {[%emt 0:02:13]} Bb5 {[%emt 0:03:10]} 17. Bf1 {[%emt 0:00:07]} Rdc8 {[%emt 0:03:05]} 18. h4 {[%emt 0:04:52]} Kf8 {[%emt 0:06:36]} 19. Qh5 {[%emt 0:03:15]} h6 {[%emt 0:01:10]} 20. g4 {[%emt 0:00:46]} Bxf1 {[%emt 0:02:29]} 21. Kxf1 {[%emt 0:00:10]} Qa6+ {[%emt 0:01:29]} 22. Kg2 {[%emt 0:00:44]} Qd3 {[%emt 0:05:01]} 23. g5 {[%emt 0:05:33]} g6 {[%emt 0:01:42]} 24. Qxh6+ {[%emt 0:02:07]} Kg8 {[%emt 0:00:30]} 25. h5 {[%emt 0:00:32]} Bf8 {[%emt 0:00:12]} 0-1